[Event "Titled Tuesday Blitz February 28 Late 2023"]
[White "Real_OceanStorm"]
[Black "Manelyuk, Daniil"]
[BlackFideId "44173920"]
[WhiteElo "2769"]
[BlackElo "2259"]
[Result "1-0"]
[Round "11"]
[TimeControl "180+2"]
[Date "2023.02.28"]
[WhiteClock "0:01:30"]
[BlackClock "0:00:06"]

1. e4 {[%clk 0:02:57]}  c6 {[%clk 0:02:56]} 2. e5 {[%clk 0:02:55]}  d5 {[%clk 0:02:55]} 3. d4 {[%clk 0:02:55]}  Bf5 {[%clk 0:02:54]} 4. Be2 {[%clk 0:02:55]}  e6 {[%clk 0:02:52]} 5. g4 {[%clk 0:02:55]}  Bg6 {[%clk 0:02:51]} 6. h4 {[%clk 0:02:54]}  h5 {[%clk 0:02:50]} 7. gxh5 {[%clk 0:02:53]}  Be4 {[%clk 0:02:51]} 8. Nf3 {[%clk 0:02:53]}  Nh6 {[%clk 0:02:49]} 9. Rg1 {[%clk 0:02:53]}  Bxf3 {[%clk 0:02:44]} 10. Bxf3 {[%clk 0:02:53]}  Qxh4 {[%clk 0:02:44]} 11. Bg5 {[%clk 0:02:47]}  Qh2 {[%clk 0:02:41]} 12. Rh1 {[%clk 0:02:46]}  Qxh1+ {[%clk 0:02:21]} 13. Bxh1 {[%clk 0:02:47]}  Nd7 {[%clk 0:02:20]} 14. Bxh6 {[%clk 0:02:41]}  gxh6 {[%clk 0:02:18]} 15. Bf3 {[%clk 0:02:41]}  Rg8 {[%clk 0:02:18]} 16. Ke2 {[%clk 0:02:40]}  Be7 {[%clk 0:02:15]} 17. Nc3 {[%clk 0:02:39]}  O-O-O {[%clk 0:02:14]} 18. a4 {[%clk 0:02:40]}  Rg5 {[%clk 0:02:10]} 19. a5 {[%clk 0:02:40]}  c5 {[%clk 0:02:11]} 20. a6 {[%clk 0:02:41]}  b6 {[%clk 0:02:08]} 21. Nb5 {[%clk 0:02:41]}  Kb8 {[%clk 0:02:07]} 22. c3 {[%clk 0:02:41]}  f6 {[%clk 0:02:00]} 23. exf6 {[%clk 0:02:34]}  Nxf6 {[%clk 0:02:00]} 24. c4 {[%clk 0:02:20]}  dxc4 {[%clk 0:01:55]} 25. Qc1 {[%clk 0:02:16]}  cxd4 {[%clk 0:01:44]} 26. Qxc4 {[%clk 0:02:16]}  d3+ {[%clk 0:01:44]} 27. Kf1 {[%clk 0:02:16]}  Bc5 {[%clk 0:01:09]} 28. Rd1 {[%clk 0:02:08]}  Nd5 {[%clk 0:00:41]} 29. Rxd3 {[%clk 0:01:54]}  Rf8 {[%clk 0:00:39]} 30. Qe4 {[%clk 0:01:51]}  Rgf5 {[%clk 0:00:23]} 31. b4 {[%clk 0:01:35]}  Bxb4 {[%clk 0:00:16]} 32. Qxe6 {[%clk 0:01:31]}  Bc5 {[%clk 0:00:10]} 33. Qc6 {[%clk 0:01:31]}  R8f7 {[%clk 0:00:06]} 34. Qe8# {[%clk 0:01:30]} 1-0


[Site "https://www.chess.com"]

[Event "Titled Tuesday Blitz February 28 Late 2023"]
[White "Haydon, David L"]
[Black "Pakleza, Zbigniew"]
[WhiteFideId "415405"]
[BlackFideId "1119290"]
[WhiteElo "2326"]
[BlackElo "2410"]
[Result "0-1"]
[Round "11"]
[TimeControl "180+2"]
[Date "2023.02.28"]
[WhiteClock "0:00:06"]
[BlackClock "0:00:01"]

1. c4 {[%clk 0:03:00]}  c6 {[%clk 0:02:58]} 2. Nf3 {[%clk 0:03:00]}  d5 {[%clk 0:02:56]} 3. Qc2 {[%clk 0:03:00]}  Nf6 {[%clk 0:02:57]} 4. b3 {[%clk 0:02:59]}  Bg4 {[%clk 0:02:56]} 5. Bb2 {[%clk 0:02:58]}  Nbd7 {[%clk 0:02:56]} 6. d3 {[%clk 0:02:57]}  e6 {[%clk 0:02:56]} 7. Nbd2 {[%clk 0:02:56]}  Be7 {[%clk 0:02:56]} 8. g3 {[%clk 0:02:56]}  O-O {[%clk 0:02:56]} 9. Bg2 {[%clk 0:02:56]}  a5 {[%clk 0:02:56]} 10. O-O {[%clk 0:02:55]}  a4 {[%clk 0:02:55]} 11. bxa4 {[%clk 0:02:52]}  Qa5 {[%clk 0:02:55]} 12. Rfe1 {[%clk 0:02:39]}  Qxa4 {[%clk 0:02:53]} 13. Nb3 {[%clk 0:02:38]}  dxc4 {[%clk 0:02:40]} 14. dxc4 {[%clk 0:02:37]}  h6 {[%clk 0:02:32]} 15. Rad1 {[%clk 0:02:27]}  Rfd8 {[%clk 0:02:27]} 16. h3 {[%clk 0:02:22]}  Bf5 {[%clk 0:02:26]} 17. e4 {[%clk 0:02:21]}  Bh7 {[%clk 0:01:58]} 18. Nfd2 {[%clk 0:02:15]}  Nc5 {[%clk 0:01:54]} 19. Bd4 {[%clk 0:02:11]}  e5 {[%clk 0:01:17]} 20. Bxe5 {[%clk 0:01:52]}  Nd3 {[%clk 0:01:16]} 21. Bc3 {[%clk 0:01:27]}  Nxe1 {[%clk 0:01:15]} 22. Rxe1 {[%clk 0:01:27]}  Qxa2 {[%clk 0:01:13]} 23. Qd1 {[%clk 0:01:23]}  Qa4 {[%clk 0:00:43]} 24. e5 {[%clk 0:01:19]}  Ne8 {[%clk 0:00:39]} 25. e6 {[%clk 0:01:19]}  fxe6 {[%clk 0:00:35]} 26. Rxe6 {[%clk 0:01:09]}  Bf6 {[%clk 0:00:36]} 27. Bxf6 {[%clk 0:01:02]}  Nxf6 {[%clk 0:00:37]} 28. Qe1 {[%clk 0:00:51]}  Bc2 {[%clk 0:00:30]} 29. Rxf6 {[%clk 0:00:42]}  Re8 {[%clk 0:00:04]} 30. Re6 {[%clk 0:00:41]}  Kf8 {[%clk 0:00:05]} 31. Nc5 {[%clk 0:00:35]}  Qa5 {[%clk 0:00:02]} 32. Qe3 {[%clk 0:00:21]}  Bh7 {[%clk 0:00:01]} 33. Nd7+ {[%clk 0:00:19]}  Kf7 {[%clk 0:00:01]} 34. Rxe8 {[%clk 0:00:18]}  Rxe8 {[%clk 0:00:02]} 35. Qf4+ {[%clk 0:00:17]}  Kg8 {[%clk 0:00:02]} 36. Ne4 {[%clk 0:00:18]}  Qe1+ {[%clk 0:00:01]} 37. Kh2 {[%clk 0:00:17]}  Bxe4 {[%clk 0:00:02]} 38. Qg4 {[%clk 0:00:06]}  Bxg2 {[%clk 0:00:01]} 0-1


[Site "https://www.chess.com"]

[Event "Titled Tuesday Blitz February 28 Late 2023"]
[White "Jimenez Almeida, Luis David"]
[Black "Fus, Jakub"]
[WhiteFideId "22242244"]
[BlackFideId "1193023"]
[WhiteElo "2245"]
[BlackElo "2335"]
[Result "1-0"]
[Round "11"]
[TimeControl "180+2"]
[Date "2023.02.28"]
[WhiteClock "0:00:33"]
[BlackClock "0:00:31"]

1. e4 {[%clk 0:03:00]}  c5 {[%clk 0:02:59]} 2. Nc3 {[%clk 0:03:00]}  a6 {[%clk 0:02:55]} 3. g3 {[%clk 0:02:59]}  b5 {[%clk 0:02:54]} 4. Bg2 {[%clk 0:02:59]}  Bb7 {[%clk 0:02:55]} 5. Nge2 {[%clk 0:02:58]}  g6 {[%clk 0:02:53]} 6. d4 {[%clk 0:02:57]}  cxd4 {[%clk 0:02:52]} 7. Nxd4 {[%clk 0:02:56]}  Bg7 {[%clk 0:02:51]} 8. O-O {[%clk 0:02:55]}  d6 {[%clk 0:02:46]} 9. Re1 {[%clk 0:02:53]}  Nd7 {[%clk 0:02:46]} 10. a4 {[%clk 0:02:52]}  bxa4 {[%clk 0:02:42]} 11. Rxa4 {[%clk 0:02:50]}  Nc5 {[%clk 0:02:38]} 12. Ra3 {[%clk 0:02:43]}  Nf6 {[%clk 0:02:38]} 13. h3 {[%clk 0:02:40]}  e5 {[%clk 0:02:35]} 14. Nb3 {[%clk 0:02:32]}  Qc7 {[%clk 0:02:24]} 15. Na5 {[%clk 0:02:25]}  O-O {[%clk 0:02:20]} 16. b4 {[%clk 0:02:05]}  Ne6 {[%clk 0:02:17]} 17. Be3 {[%clk 0:02:01]}  Rfd8 {[%clk 0:02:13]} 18. Na4 {[%clk 0:01:53]}  Rd7 {[%clk 0:01:48]} 19. Nb6 {[%clk 0:01:45]}  Rad8 {[%clk 0:01:48]} 20. Nxd7 {[%clk 0:01:43]}  Rxd7 {[%clk 0:01:49]} 21. c4 {[%clk 0:01:37]}  Bxe4 {[%clk 0:01:47]} 22. Bxe4 {[%clk 0:01:33]}  Nxe4 {[%clk 0:01:48]} 23. Qd5 {[%clk 0:01:28]}  N6g5 {[%clk 0:01:27]} 24. Bxg5 {[%clk 0:01:22]}  Nxg5 {[%clk 0:01:26]} 25. h4 {[%clk 0:01:20]}  Ne6 {[%clk 0:01:26]} 26. Qa8+ {[%clk 0:01:19]}  Rd8 {[%clk 0:01:26]} 27. Qxa6 {[%clk 0:01:12]}  Nd4 {[%clk 0:01:10]} 28. Rd1 {[%clk 0:00:44]}  Rb8 {[%clk 0:01:09]} 29. b5 {[%clk 0:00:39]}  e4 {[%clk 0:01:06]} 30. Nc6 {[%clk 0:00:37]}  Nxc6 {[%clk 0:00:39]} 31. Qxc6 {[%clk 0:00:37]}  Qe7 {[%clk 0:00:37]} 32. Ra8 {[%clk 0:00:35]}  Rxa8 {[%clk 0:00:36]} 33. Qxa8+ {[%clk 0:00:36]}  Bf8 {[%clk 0:00:36]} 34. Re1 {[%clk 0:00:33]}  d5 {[%clk 0:00:31]} 35. Qxd5 {[%clk 0:00:33]} 1-0


[Site "https://www.chess.com"]

[Event "Titled Tuesday Blitz February 28 Late 2023"]
[White "Mendez Fortes, Eduardo Jesus"]
[Black "Matinian, Nikita"]
[WhiteFideId "3502376"]
[BlackFideId "24129100"]
[WhiteElo "2307"]
[BlackElo "2422"]
[Result "0-1"]
[Round "11"]
[TimeControl "180+2"]
[Date "2023.02.28"]
[WhiteClock "0:02:17"]
[BlackClock "0:01:30"]

1. e4 {[%clk 0:02:59]}  e5 {[%clk 0:02:56]} 2. Nf3 {[%clk 0:02:59]}  Nc6 {[%clk 0:02:56]} 3. Bb5 {[%clk 0:02:59]}  a6 {[%clk 0:02:53]} 4. Ba4 {[%clk 0:02:59]}  Bc5 {[%clk 0:02:53]} 5. O-O {[%clk 0:02:58]}  d6 {[%clk 0:02:52]} 6. c3 {[%clk 0:02:58]}  Bg4 {[%clk 0:02:52]} 7. h3 {[%clk 0:02:56]}  Bh5 {[%clk 0:02:51]} 8. d3 {[%clk 0:02:56]}  Ne7 {[%clk 0:02:47]} 9. Re1 {[%clk 0:02:56]}  f6 {[%clk 0:02:44]} 10. Nbd2 {[%clk 0:02:55]}  g5 {[%clk 0:02:44]} 11. Nf1 {[%clk 0:02:54]}  b5 {[%clk 0:02:37]} 12. Bb3 {[%clk 0:02:53]}  Qc8 {[%clk 0:02:18]} 13. Ng3 {[%clk 0:02:51]}  Bg6 {[%clk 0:02:15]} 14. d4 {[%clk 0:02:51]}  Bb6 {[%clk 0:02:12]} 15. Be3 {[%clk 0:02:51]}  h5 {[%clk 0:02:11]} 16. dxe5 {[%clk 0:02:49]}  dxe5 {[%clk 0:02:12]} 17. Bxb6 {[%clk 0:02:49]}  cxb6 {[%clk 0:02:12]} 18. Qd6 {[%clk 0:02:48]}  Rf8 {[%clk 0:02:11]} 19. Rad1 {[%clk 0:02:41]}  Ra7 {[%clk 0:02:08]} 20. Be6 {[%clk 0:02:35]}  Qc7 {[%clk 0:02:02]} 21. Qa3 {[%clk 0:02:29]}  Qb8 {[%clk 0:01:33]} 22. Rd6 {[%clk 0:02:24]}  b4 {[%clk 0:01:32]} 23. cxb4 {[%clk 0:02:17]}  Qxd6 {[%clk 0:01:31]} 24. Bb3 {[%clk 0:02:17]}  Qxb4 {[%clk 0:01:30]} 0-1


[Site "https://www.chess.com"]

[Event "Titled Tuesday Blitz February 28 Late 2023"]
[White "Kleinman, Michael"]
[Black "Alikhanov, Felix"]
[WhiteFideId "2609479"]
[BlackFideId "4157427"]
[WhiteElo "2287"]
[BlackElo "2425"]
[Result "1-0"]
[Round "11"]
[TimeControl "180+2"]
[Date "2023.02.28"]
[WhiteClock "0:00:09"]
[BlackClock "0:00:15"]

1. e4 {[%clk 0:03:00]}  e6 {[%clk 0:02:59]} 2. d4 {[%clk 0:03:00]}  d5 {[%clk 0:03:00]} 3. Nd2 {[%clk 0:03:00]}  Nf6 {[%clk 0:02:59]} 4. e5 {[%clk 0:03:00]}  Nfd7 {[%clk 0:03:00]} 5. Bd3 {[%clk 0:03:00]}  c5 {[%clk 0:03:00]} 6. c3 {[%clk 0:03:01]}  Nc6 {[%clk 0:03:01]} 7. Ne2 {[%clk 0:03:01]}  cxd4 {[%clk 0:03:02]} 8. cxd4 {[%clk 0:03:01]}  f6 {[%clk 0:03:03]} 9. exf6 {[%clk 0:03:01]}  Nxf6 {[%clk 0:03:03]} 10. O-O {[%clk 0:02:59]}  Bd6 {[%clk 0:03:04]} 11. Nf3 {[%clk 0:02:58]}  O-O {[%clk 0:03:04]} 12. a3 {[%clk 0:02:36]}  Bd7 {[%clk 0:03:03]} 13. Bf4 {[%clk 0:02:27]}  Bxf4 {[%clk 0:03:03]} 14. Nxf4 {[%clk 0:02:27]}  Ng4 {[%clk 0:02:59]} 15. Nh5 {[%clk 0:02:05]}  e5 {[%clk 0:02:35]} 16. dxe5 {[%clk 0:01:56]}  Ngxe5 {[%clk 0:02:33]} 17. Be2 {[%clk 0:01:45]}  Be8 {[%clk 0:02:24]} 18. Ng3 {[%clk 0:01:37]}  Bg6 {[%clk 0:02:19]} 19. b4 {[%clk 0:01:11]}  a6 {[%clk 0:02:14]} 20. Nxe5 {[%clk 0:01:10]}  Nxe5 {[%clk 0:02:14]} 21. Qd4 {[%clk 0:01:11]}  Nc6 {[%clk 0:02:12]} 22. Qd2 {[%clk 0:01:11]}  Kh8 {[%clk 0:02:04]} 23. Rad1 {[%clk 0:01:07]}  d4 {[%clk 0:02:02]} 24. Bd3 {[%clk 0:01:07]}  Bxd3 {[%clk 0:01:41]} 25. Qxd3 {[%clk 0:01:07]}  Qd5 {[%clk 0:01:40]} 26. Rfe1 {[%clk 0:01:04]}  Rad8 {[%clk 0:01:38]} 27. Re4 {[%clk 0:00:46]}  Qf7 {[%clk 0:01:17]} 28. Rd2 {[%clk 0:00:31]}  Rfe8 {[%clk 0:01:14]} 29. h3 {[%clk 0:00:30]}  Rxe4 {[%clk 0:01:09]} 30. Nxe4 {[%clk 0:00:27]}  Ne5 {[%clk 0:00:48]} 31. Ng5 {[%clk 0:00:19]}  Qg6 {[%clk 0:00:31]} 32. Qxg6 {[%clk 0:00:18]}  hxg6 {[%clk 0:00:31]} 33. f4 {[%clk 0:00:18]}  Nc4 {[%clk 0:00:26]} 34. Nf7+ {[%clk 0:00:15]}  Kg8 {[%clk 0:00:26]} 35. Nxd8 {[%clk 0:00:15]}  Nxd2 {[%clk 0:00:26]} 36. Nxb7 {[%clk 0:00:14]}  Nc4 {[%clk 0:00:26]} 37. Nc5 {[%clk 0:00:10]}  Nxa3 {[%clk 0:00:23]} 38. Nxa6 {[%clk 0:00:10]}  Kf7 {[%clk 0:00:19]} 39. Kf2 {[%clk 0:00:10]}  Ke6 {[%clk 0:00:20]} 40. Ke2 {[%clk 0:00:08]}  Kd5 {[%clk 0:00:20]} 41. Kd3 {[%clk 0:00:08]}  Nc4 {[%clk 0:00:17]} 42. Nc7+ {[%clk 0:00:08]}  Kc6 {[%clk 0:00:14]} 43. Kxc4 {[%clk 0:00:08]}  Kxc7 {[%clk 0:00:15]} 44. Kxd4 {[%clk 0:00:09]}  Kb6 {[%clk 0:00:15]} 45. Kc4 {[%clk 0:00:09]}  Kc6 {[%clk 0:00:15]} 46. b5+ {[%clk 0:00:09]} 1-0


[Site "https://www.chess.com"]

[Event "Titled Tuesday Blitz February 28 Late 2023"]
[White "Gunduz, Umut Erdem"]
[Black "Ansh M Shah"]
[WhiteFideId "6381383"]
[BlackFideId "25033379"]
[WhiteElo "2182"]
[BlackElo "2084"]
[Result "1-0"]
[Round "11"]
[TimeControl "180+2"]
[Date "2023.02.28"]
[WhiteClock "0:00:14"]
[BlackClock "0:00:07"]

1. e4 {[%clk 0:02:15]}  c6 {[%clk 0:02:59]} 2. d4 {[%clk 0:02:15]}  d5 {[%clk 0:03:00]} 3. Nd2 {[%clk 0:02:16]}  dxe4 {[%clk 0:03:00]} 4. Nxe4 {[%clk 0:02:16]}  Bf5 {[%clk 0:03:00]} 5. Ng3 {[%clk 0:02:17]}  Bg6 {[%clk 0:03:01]} 6. h4 {[%clk 0:02:18]}  h6 {[%clk 0:03:01]} 7. Nf3 {[%clk 0:02:18]}  Nd7 {[%clk 0:03:01]} 8. h5 {[%clk 0:02:19]}  Bh7 {[%clk 0:03:02]} 9. Bd3 {[%clk 0:02:19]}  Bxd3 {[%clk 0:03:03]} 10. Qxd3 {[%clk 0:02:20]}  e6 {[%clk 0:03:03]} 11. Bd2 {[%clk 0:02:21]}  Ngf6 {[%clk 0:03:04]} 12. O-O-O {[%clk 0:02:21]}  Be7 {[%clk 0:03:05]} 13. Qe2 {[%clk 0:02:21]}  O-O {[%clk 0:03:05]} 14. Nf1 {[%clk 0:02:22]}  Qb6 {[%clk 0:02:58]} 15. g4 {[%clk 0:02:22]}  c5 {[%clk 0:02:58]} 16. g5 {[%clk 0:02:22]}  hxg5 {[%clk 0:02:58]} 17. h6 {[%clk 0:02:18]}  g6 {[%clk 0:02:56]} 18. Bxg5 {[%clk 0:02:17]}  cxd4 {[%clk 0:02:44]} 19. Rxd4 {[%clk 0:02:15]}  Rfd8 {[%clk 0:02:25]} 20. h7+ {[%clk 0:02:02]}  Kh8 {[%clk 0:02:22]} 21. Rxd7 {[%clk 0:01:50]}  Rxd7 {[%clk 0:02:19]} 22. Ne5 {[%clk 0:01:48]}  Bd8 {[%clk 0:01:12]} 23. Qf3 {[%clk 0:01:16]}  Nh5 {[%clk 0:00:36]} 24. Rxh5 {[%clk 0:00:43]}  gxh5 {[%clk 0:00:35]} 25. Bf6+ {[%clk 0:00:37]}  Bxf6 {[%clk 0:00:33]} 26. Qxf6+ {[%clk 0:00:38]}  Kxh7 {[%clk 0:00:33]} 27. Nxd7 {[%clk 0:00:38]}  Qa5 {[%clk 0:00:20]} 28. Qxf7+ {[%clk 0:00:37]}  Kh8 {[%clk 0:00:19]} 29. Qf6+ {[%clk 0:00:34]}  Kh7 {[%clk 0:00:18]} 30. Nd2 {[%clk 0:00:28]}  Rg8 {[%clk 0:00:16]} 31. Nf8+ {[%clk 0:00:27]}  Rxf8 {[%clk 0:00:15]} 32. Qxf8 {[%clk 0:00:28]}  Qg5 {[%clk 0:00:14]} 33. Qf7+ {[%clk 0:00:22]}  Kh8 {[%clk 0:00:13]} 34. Qe8+ {[%clk 0:00:20]}  Kh7 {[%clk 0:00:12]} 35. Qd7+ {[%clk 0:00:20]}  Kh8 {[%clk 0:00:11]} 36. Qc8+ {[%clk 0:00:20]}  Kh7 {[%clk 0:00:10]} 37. Qxb7+ {[%clk 0:00:21]}  Kh6 {[%clk 0:00:11]} 38. Qh1 {[%clk 0:00:15]}  h4 {[%clk 0:00:10]} 39. Kd1 {[%clk 0:00:13]}  e5 {[%clk 0:00:10]} 40. Nf3 {[%clk 0:00:13]}  Qg4 {[%clk 0:00:07]} 41. Qxh4+ {[%clk 0:00:12]}  Qxh4 {[%clk 0:00:07]} 42. Nxh4 {[%clk 0:00:13]}  Kg5 {[%clk 0:00:08]} 43. Nf3+ {[%clk 0:00:13]}  Kf4 {[%clk 0:00:09]} 44. Nxe5 {[%clk 0:00:14]}  Kxe5 {[%clk 0:00:10]} 45. Ke2 {[%clk 0:00:15]}  a5 {[%clk 0:00:09]} 46. Ke3 {[%clk 0:00:14]}  a4 {[%clk 0:00:09]} 47. b4 {[%clk 0:00:14]}  axb3 {[%clk 0:00:07]} 48. cxb3 {[%clk 0:00:14]} 1-0


[Site "https://www.chess.com"]

[Event "Titled Tuesday Blitz February 28 Late 2023"]
[White "Nilsen, Tobias Lang"]
[Black "Bilych, Olexiy"]
[WhiteFideId "1521624"]
[BlackFideId "14156504"]
[WhiteElo "2195"]
[BlackElo "2320"]
[Result "0-1"]
[Round "11"]
[TimeControl "180+2"]
[Date "2023.02.28"]
[WhiteClock "0:00:25"]
[BlackClock "0:01:12"]

1. e4 {[%clk 0:03:00]}  g6 {[%clk 0:02:59]} 2. d4 {[%clk 0:03:00]}  Bg7 {[%clk 0:02:59]} 3. Bf4 {[%clk 0:02:58]}  d6 {[%clk 0:02:57]} 4. Nc3 {[%clk 0:02:58]}  Nc6 {[%clk 0:02:56]} 5. d5 {[%clk 0:02:55]}  Nd4 {[%clk 0:02:51]} 6. Nge2 {[%clk 0:02:46]}  c5 {[%clk 0:02:48]} 7. Nxd4 {[%clk 0:02:42]}  cxd4 {[%clk 0:02:47]} 8. Bb5+ {[%clk 0:02:42]}  Bd7 {[%clk 0:02:46]} 9. Bxd7+ {[%clk 0:02:42]}  Qxd7 {[%clk 0:02:46]} 10. Ne2 {[%clk 0:02:43]}  Qb5 {[%clk 0:02:41]} 11. O-O {[%clk 0:02:36]}  Qb6 {[%clk 0:02:29]} 12. Qd3 {[%clk 0:02:30]}  Nf6 {[%clk 0:02:21]} 13. a4 {[%clk 0:02:25]}  Nd7 {[%clk 0:02:17]} 14. a5 {[%clk 0:02:25]}  Qc5 {[%clk 0:02:15]} 15. b4 {[%clk 0:02:06]}  Qxb4 {[%clk 0:01:59]} 16. Rfb1 {[%clk 0:02:05]}  Qc5 {[%clk 0:02:00]} 17. Rxb7 {[%clk 0:02:05]}  Rc8 {[%clk 0:01:59]} 18. Rab1 {[%clk 0:01:52]}  Qxc2 {[%clk 0:01:51]} 19. Qb5 {[%clk 0:01:43]}  O-O {[%clk 0:01:46]} 20. Qxd7 {[%clk 0:01:07]}  Qxe2 {[%clk 0:01:42]} 21. Qxe7 {[%clk 0:01:06]}  d3 {[%clk 0:01:39]} 22. h4 {[%clk 0:00:44]}  d2 {[%clk 0:01:36]} 23. Bxd2 {[%clk 0:00:44]}  Qxd2 {[%clk 0:01:37]} 24. Qxd6 {[%clk 0:00:42]}  Bd4 {[%clk 0:01:20]} 25. Rf1 {[%clk 0:00:40]}  Rc1 {[%clk 0:01:18]} 26. Rxc1 {[%clk 0:00:37]}  Qxc1+ {[%clk 0:01:17]} 27. Kh2 {[%clk 0:00:37]}  Bxf2 {[%clk 0:01:16]} 28. Rb8 {[%clk 0:00:30]}  Qg1+ {[%clk 0:01:13]} 29. Kh3 {[%clk 0:00:30]}  Qh1+ {[%clk 0:01:13]} 30. Kg4 {[%clk 0:00:26]}  Qxg2+ {[%clk 0:01:13]} 31. Kf4 {[%clk 0:00:25]}  Qg3# {[%clk 0:01:12]} 0-1


[Site "https://www.chess.com"]

[Event "Titled Tuesday Blitz February 28 Late 2023"]
[White "Papasimakopoulos, Alexandros"]
[Black "Karamsetty, Jeevan"]
[WhiteFideId "4244125"]
[BlackFideId "2025337"]
[WhiteElo "2359"]
[BlackElo "2111"]
[Result "1/2-1/2"]
[Round "11"]
[TimeControl "180+2"]
[Date "2023.02.28"]
[WhiteClock "0:00:05"]
[BlackClock "0:00:11"]

1. c4 {[%clk 0:03:00]}  Nf6 {[%clk 0:02:56]} 2. Nf3 {[%clk 0:02:58]}  e6 {[%clk 0:02:57]} 3. g3 {[%clk 0:02:58]}  d5 {[%clk 0:02:58]} 4. Bg2 {[%clk 0:02:57]}  Be7 {[%clk 0:02:57]} 5. O-O {[%clk 0:02:58]}  O-O {[%clk 0:02:57]} 6. b3 {[%clk 0:02:50]}  c5 {[%clk 0:02:56]} 7. cxd5 {[%clk 0:02:50]}  exd5 {[%clk 0:02:55]} 8. d4 {[%clk 0:02:50]}  b6 {[%clk 0:02:54]} 9. Bb2 {[%clk 0:02:50]}  Bb7 {[%clk 0:02:54]} 10. Nc3 {[%clk 0:02:48]}  Nc6 {[%clk 0:02:52]} 11. Rc1 {[%clk 0:02:45]}  Rc8 {[%clk 0:02:51]} 12. Bh3 {[%clk 0:02:41]}  Rb8 {[%clk 0:02:42]} 13. dxc5 {[%clk 0:02:38]}  Bxc5 {[%clk 0:02:22]} 14. Na4 {[%clk 0:02:27]}  Be7 {[%clk 0:02:14]} 15. Nd4 {[%clk 0:02:26]}  Nxd4 {[%clk 0:02:03]} 16. Qxd4 {[%clk 0:02:27]}  Bc8 {[%clk 0:01:55]} 17. Bg2 {[%clk 0:02:23]}  Be6 {[%clk 0:01:54]} 18. Nc3 {[%clk 0:02:18]}  Bc5 {[%clk 0:01:51]} 19. Qh4 {[%clk 0:02:12]}  Be7 {[%clk 0:01:49]} 20. Qa4 {[%clk 0:02:05]}  a5 {[%clk 0:01:43]} 21. Rfd1 {[%clk 0:02:04]}  Bb4 {[%clk 0:01:37]} 22. a3 {[%clk 0:02:01]}  Bd7 {[%clk 0:01:36]} 23. Nb5 {[%clk 0:02:01]}  Qe8 {[%clk 0:01:35]} 24. axb4 {[%clk 0:01:50]}  Bxb5 {[%clk 0:01:35]} 25. Qa3 {[%clk 0:01:47]}  Qxe2 {[%clk 0:01:07]} 26. Bxf6 {[%clk 0:01:44]}  gxf6 {[%clk 0:01:08]} 27. Bf1 {[%clk 0:01:41]}  Qe8 {[%clk 0:01:06]} 28. bxa5 {[%clk 0:01:39]}  bxa5 {[%clk 0:01:04]} 29. Rxd5 {[%clk 0:01:34]}  Bc6 {[%clk 0:00:53]} 30. Rd6 {[%clk 0:01:21]}  Ba8 {[%clk 0:00:38]} 31. Qa4 {[%clk 0:01:13]}  Qe5 {[%clk 0:00:34]} 32. Rcd1 {[%clk 0:00:57]}  Rb4 {[%clk 0:00:32]} 33. Qa2 {[%clk 0:00:45]}  Qe4 {[%clk 0:00:29]} 34. f3 {[%clk 0:00:45]}  Qxf3 {[%clk 0:00:24]} 35. Bg2 {[%clk 0:00:43]}  Qe3+ {[%clk 0:00:20]} 36. Qf2 {[%clk 0:00:44]}  Qxf2+ {[%clk 0:00:19]} 37. Kxf2 {[%clk 0:00:45]}  Rxb3 {[%clk 0:00:19]} 38. R1d2 {[%clk 0:00:38]}  Kg7 {[%clk 0:00:16]} 39. Ra6 {[%clk 0:00:37]}  Bxg2 {[%clk 0:00:14]} 40. Kxg2 {[%clk 0:00:37]}  Ra3 {[%clk 0:00:15]} 41. Rf2 {[%clk 0:00:35]}  Rb8 {[%clk 0:00:15]} 42. Raxf6 {[%clk 0:00:32]}  Rb7 {[%clk 0:00:14]} 43. Ra6 {[%clk 0:00:33]}  Ra1 {[%clk 0:00:14]} 44. h4 {[%clk 0:00:26]}  a4 {[%clk 0:00:14]} 45. h5 {[%clk 0:00:26]}  h6 {[%clk 0:00:11]} 46. Kh3 {[%clk 0:00:22]}  a3 {[%clk 0:00:08]} 47. Ra4 {[%clk 0:00:19]}  Rh1+ {[%clk 0:00:07]} 48. Kg4 {[%clk 0:00:19]}  Rb5 {[%clk 0:00:05]} 49. Ra7 {[%clk 0:00:17]}  Rg5+ {[%clk 0:00:05]} 50. Kf3 {[%clk 0:00:15]}  Rhxh5 {[%clk 0:00:05]} 51. Rxa3 {[%clk 0:00:14]}  Rf5+ {[%clk 0:00:04]} 52. Kg2 {[%clk 0:00:14]}  Rxf2+ {[%clk 0:00:05]} 53. Kxf2 {[%clk 0:00:15]}  Rg5 {[%clk 0:00:05]} 54. Kf3 {[%clk 0:00:15]}  Kg6 {[%clk 0:00:06]} 55. Kf4 {[%clk 0:00:16]}  Rf5+ {[%clk 0:00:05]} 56. Kg4 {[%clk 0:00:16]}  Rg5+ {[%clk 0:00:06]} 57. Kh4 {[%clk 0:00:16]}  f6 {[%clk 0:00:06]} 58. Ra8 {[%clk 0:00:16]}  Rh5+ {[%clk 0:00:04]} 59. Kg4 {[%clk 0:00:15]}  Rg5+ {[%clk 0:00:05]} 60. Kh4 {[%clk 0:00:16]}  Rd5 {[%clk 0:00:05]} 61. Rg8+ {[%clk 0:00:15]}  Kf5 {[%clk 0:00:04]} 62. g4+ {[%clk 0:00:13]}  Kf4 {[%clk 0:00:04]} 63. Rg6 {[%clk 0:00:13]}  f5 {[%clk 0:00:04]} 64. Rf6 {[%clk 0:00:11]}  Ke4 {[%clk 0:00:03]} 65. Re6+ {[%clk 0:00:08]}  Kf4 {[%clk 0:00:02]} 66. Rf6 {[%clk 0:00:07]}  Ke4 {[%clk 0:00:02]} 67. Rxh6 {[%clk 0:00:04]}  fxg4 {[%clk 0:00:02]} 68. Kxg4 {[%clk 0:00:04]}  Kd4 {[%clk 0:00:03]} 69. Kf4 {[%clk 0:00:04]}  Kc5 {[%clk 0:00:04]} 70. Ke4 {[%clk 0:00:03]}  Rd4+ {[%clk 0:00:04]} 71. Ke3 {[%clk 0:00:04]}  Rd5 {[%clk 0:00:05]} 72. Rh4 {[%clk 0:00:04]}  Rd6 {[%clk 0:00:06]} 73. Ra4 {[%clk 0:00:03]}  Kc6 {[%clk 0:00:07]} 74. Ke4 {[%clk 0:00:03]}  Kd7 {[%clk 0:00:08]} 75. Ke5 {[%clk 0:00:03]}  Re6+ {[%clk 0:00:08]} 76. Kf5 {[%clk 0:00:04]}  Rc6 {[%clk 0:00:08]} 77. Rd4+ {[%clk 0:00:04]}  Kc7 {[%clk 0:00:09]} 78. Ke5 {[%clk 0:00:04]}  Kb7 {[%clk 0:00:09]} 79. Rb4+ {[%clk 0:00:04]}  Rb6 {[%clk 0:00:09]} 80. Ra4 {[%clk 0:00:04]}  Rb5+ {[%clk 0:00:09]} 81. Kd6 {[%clk 0:00:04]}  Kb6 {[%clk 0:00:10]} 82. Ra3 {[%clk 0:00:04]}  Rb1 {[%clk 0:00:10]} 83. Rd3 {[%clk 0:00:04]}  Rb4 {[%clk 0:00:10]} 84. Rd1 {[%clk 0:00:05]}  Kb5 {[%clk 0:00:11]} 85. Kd5 {[%clk 0:00:05]}  Rb3 {[%clk 0:00:11]} 86. Rc1 {[%clk 0:00:05]}  Rb4 {[%clk 0:00:11]} 87. Rc8 {[%clk 0:00:04]}  Ka4 {[%clk 0:00:11]} 88. Kc5 {[%clk 0:00:04]}  Kb3 {[%clk 0:00:11]} 89. Kd5 {[%clk 0:00:04]}  Rb5+ {[%clk 0:00:11]} 90. Rc5 {[%clk 0:00:04]}  Rxc5+ {[%clk 0:00:11]} 91. Kxc5 {[%clk 0:00:05]} 1/2-1/2


[Site "https://www.chess.com"]